[Event "Kragero Resort Chess A 2019"]
[Site "Kragero"]
[Date "2019.02.20"]
[Round "1.25"]
[White "Ingebretsen, Jens E"]
[Black "Kreken, Eivind Grunt"]
[Result "1-0"]
[ECO "B07"]
[WhiteElo "2297"]
[BlackElo "1887"]
[Annotator "NA"]
[PlyCount "155"]
[EventDate "2019.02.20"]
[EventType "swiss"]
[EventCountry "NOR"]
[SourceTitle "playchess.com"]
[Source "ChessBase"]
[SourceQuality "1"]
[TimeControl "5400+30"]

1. e4 {[%emt 0:00:00]} d6 {[%emt 0:00:00]} 2. d4 {[%emt 0:00:00]} Nf6 {[%emt 0:00:00]} 3. Bd3 {[%emt 0:00:05]} g6 {[%emt 0:00:18]} 4. Nf3 {[%emt 0:00:09]} Bg7 {[%emt 0:00:08]} 5. c3 {[%emt 0:00:03]} O-O {[%emt 0:00:30]} 6. O-O {[%emt 0:00:07]} c5 {[%emt 0:02:19]} 7. Nbd2 {[%emt 0:01:24]} cxd4 {[%emt 0:00:21]} 8. cxd4 {[%emt 0:00:37]} Nc6 {[%emt 0:00:04]} 9. d5 {[%emt 0:01:56]} Nb4 {[%emt 0:00:30]} 10. Nb3 {[%emt 0:00:47]} e6 {[%emt 0:12:59]} 11. dxe6 {[%emt 0:02:43]} Bxe6 {[%emt 0:01:02]} 12. Bg5 {[%emt 0:02:35]} h6 {[%emt 0:11:41]} 13. Bf4 {[%emt 0:02:24]} Nh5 {[%emt 0:05:32]} 14. Be3 {[%emt 0:00:37]} Rc8 {[%emt 0:05:00]} 15. Nfd4 {[%emt 0:02:02]} Nxd3 {[%emt 0:02:57]} 16. Nxe6 {[%emt 0:00:38]} Nxb2 {[%emt 0:01:03]} 17. Nxd8 {[%emt 0:02:15]} Nxd1 {[%emt 0:00:16]} 18. Raxd1 {[%emt 0:00:11]} Rcxd8 {[%emt 0:01:26]} 19. Bxa7 {[%emt 0:01:16]} Ra8 {[%emt 0:00:34]} 20. Be3 {[%emt 0:00:12]} Ra6 {[%emt 0:01:17]} 21. Rd2 {[%emt 0:01:27]} Rfa8 {[%emt 0:12:19]} 22. Rfd1 {[%emt 0:00:49]} Bf8 {[%emt 0:01:30]} 23. Nc1 {[%emt 0:01:43]} Nf6 {[%emt 0:00:28]} 24. f3 {[%emt 0:01:53]} Nd7 {[%emt 0:04:44]} 25. Rb2 {[%emt 0:00:58]} b6 {[%emt 0:01:59]} 26. Rd5 {[%emt 0:01:04]} Ra5 {[%emt 0:07:23]} 27. Rdb5 {[%emt 0:04:44]} Rxb5 {[%emt 0:01:38]} 28. Rxb5 {[%emt 0:00:02]} Ra5 {[%emt 0:00:44]} 29. Rxa5 {[%emt 0:02:34]} bxa5 {[%emt 0:00:15]} 30. a4 {[%emt 0:01:10]} Nc5 {[%emt 0:05:45]} 31. Bxc5 {[%emt 0:00:07]} dxc5 {[%emt 0:00:06]} 32. Kf1 {[%emt 0:00:23]} c4 {[%emt 0:00:52]} 33. Ke2 {[%emt 0:00:14]} Bg7 {[%emt 0:02:42]} 34. Kd2 {[%emt 0:00:49]} Kf8 {[%emt 0:00:18]} 35. Ne2 {[%emt 0:01:10]} Ke7 {[%emt 0:01:26]} 36. Nc3 {[%emt 0:01:41]} Kd6 {[%emt 0:00:40]} 37. Kc2 {[%emt 0:01:27]} Kc5 {[%emt 0:00:21]} 38. Nd5 {[%emt 0:00:08]} h5 {[%emt 0:00:56]} 39. h3 {[%emt 0:01:40]} c3 {[%emt 0:12:57]} 40. Kb3 {[%emt 0:02:25]} Kd4 {[%emt 0:02:13]} 41. Nxc3 {[%emt 0:01:02]} Ke3 {[%emt 0:00:43]} 42. Nd1+ {[%emt 0:02:30]} Kd2 {[%emt 0:00:35]} 43. Nb2 {[%emt 0:02:55]} Bxb2 {[%emt 0:01:26]} 44. Kxb2 {[%emt 0:00:01]} Ke2 {[%emt 0:00:12]} 45. Kc3 {[%emt 0:15:04]} Kf2 {[%emt 0:00:11]} 46. Kc4 {[%emt 0:15:59]} Kxg2 {[%emt 0:00:14]} 47. Kb5 {[%emt 0:02:29]} Kxh3 {[%emt 0:01:21]} 48. Kxa5 {[%emt 0:00:04]} Kg2 {[%emt 0:00:15]} 49. Kb6 {[%emt 0:01:28]} h4 {[%emt 0:00:07]} 50. a5 {[%emt 0:00:03]} h3 {[%emt 0:00:11]} 51. a6 {[%emt 0:00:03]} h2 {[%emt 0:00:19]} 52. a7 {[%emt 0:00:03]} h1=Q {[%emt 0:00:09]} 53. a8=Q {[%emt 0:00:08]} Qb1+ {[%emt 0:00:22]} 54. Kc7 {[%emt 0:01:29]} Qc2+ {[%emt 0:00:10]} 55. Kd6 {[%emt 0:02:05]} Kxf3 {[%emt 0:00:46]} 56. e5+ {[%emt 0:00:12]} Qe4 {[%emt 0:00:24]} 57. Qa3+ {[%emt 0:00:50]} Kg4 {[%emt 0:01:30]} 58. Qc5 {[%emt 0:01:16]} Kf4 {[%emt 0:01:30]} 59. Qf2+ {[%emt 0:00:57]} Qf3 {[%emt 0:00:37]} 60. Qh4+ {[%emt 0:01:07]} Qg4 {[%emt 0:00:23]} 61. Qf2+ {[%emt 0:04:08]} Qf3 {[%emt 0:00:14]} 62. Qh2+ {[%emt 0:01:09]} Qg3 {[%emt 0:00:24]} 63. Qh6+ {[%emt 0:00:46]} Qg5 {[%emt 0:00:58]} 64. Qh8 {[%emt 0:00:07]} Kf5 {[%emt 0:00:58]} 65. Qc8+ {[%emt 0:00:57]} Kf4 {[%emt 0:00:25]} 66. Qc4+ {[%emt 0:00:18]} Kf3 {[%emt 0:00:31]} 67. Qxf7+ {[%emt 0:00:14]} Ke4 {[%emt 0:00:32]} 68. Qc4+ {[%emt 0:01:39]} Kf3 {[%emt 0:00:43]} 69. Qd3+ {[%emt 0:01:41]} Kf2 {[%emt 0:00:26]} 70. Qc2+ {[%emt 0:01:01]} Kf3 {[%emt 0:00:15]} 71. Qc6+ {[%emt 0:00:51]} Kf2 {[%emt 0:00:14]} 72. e6 {[%emt 0:00:47]} Qd8+ {[%emt 0:00:33]} 73. Qd7 {[%emt 0:00:21]} Qb6+ {[%emt 0:00:11]} 74. Ke7 {[%emt 0:00:12]} Qb4+ {[%emt 0:00:20]} 75. Ke8 {[%emt 0:00:46]} Qb8+ {[%emt 0:00:11]} 76. Qd8 {[%emt 0:00:24]} Qb5+ {[%emt 0:00:10]} 77. Kf7 {[%emt 0:00:08]} Qf5+ {[%emt 0:00:09]} 78. Qf6 {[%emt 0:00:06]} 1-0

[Event "Kragero Resort Chess A 2019"]
[Site "Kragero"]
[Date "2019.02.20"]
[Round "1.26"]
[White "Albzour, Abdalsalam"]
[Black "Khachatryan, Vahagn"]
[Result "0-1"]
[ECO "C47"]
[WhiteElo "1869"]
[BlackElo "2274"]
[Annotator "NA"]
[PlyCount "75"]
[EventDate "2019.02.20"]
[EventType "swiss"]
[EventCountry "NOR"]
[SourceTitle "playchess.com"]
[Source "ChessBase"]
[SourceQuality "1"]
[TimeControl "5400+30"]

1. e4 {[%emt 0:35:24]} Nf6 {[%emt 0:00:00]} 2. Nc3 {[%emt 0:00:24]} e5 {[%emt 0:00:00]} 3. Nf3 {[%emt 0:00:09]} Nc6 {[%emt 0:00:00]} 4. d4 {[%emt 0:00:41]} exd4 {[%emt 0:00:15]} 5. Nxd4 {[%emt 0:00:12]} Bb4 {[%emt 0:00:20]} 6. f3 {[%emt 0:00:25]} O-O {[%emt 0:01:31]} 7. a3 {[%emt 0:00:20]} Bxc3+ {[%emt 0:00:03]} 8. bxc3 {[%emt 0:00:22]} d5 {[%emt 0:00:41]} 9. Nxc6 {[%emt 0:01:00]} bxc6 {[%emt 0:00:09]} 10. Bg5 {[%emt 0:03:52]} h6 {[%emt 0:00:38]} 11. Bxf6 {[%emt 0:00:26]} Qxf6 {[%emt 0:00:06]} 12. Qd4 {[%emt 0:00:13]} Qg5 {[%emt 0:01:33]} 13. Bd3 {[%emt 0:01:25]} dxe4 {[%emt 0:01:48]} 14. fxe4 {[%emt 0:00:35]} Rd8 {[%emt 0:03:42]} 15. Qf2 {[%emt 0:01:03]} Be6 {[%emt 0:00:31]} 16. O-O {[%emt 0:00:30]} Qe5 {[%emt 0:00:30]} 17. Qe1 {[%emt 0:02:37]} Rab8 {[%emt 0:01:01]} 18. Kh1 {[%emt 0:01:24]} c5 {[%emt 0:00:09]} 19. c4 {[%emt 0:01:22]} Rb6 {[%emt 0:02:36]} 20. Qa5 {[%emt 0:01:09]} a6 {[%emt 0:00:09]} 21. Rab1 {[%emt 0:02:31]} Rdb8 {[%emt 0:00:40]} 22. Rxb6 {[%emt 0:02:19]} Rxb6 {[%emt 0:00:04]} 23. Qa4 {[%emt 0:01:46]} Kf8 {[%emt 0:00:21]} 24. Qa5 {[%emt 0:00:58]} Qd4 {[%emt 0:01:44]} 25. Qa4 {[%emt 0:02:48]} Qc3 {[%emt 0:01:12]} 26. Rd1 {[%emt 0:02:35]} Ke7 {[%emt 0:01:27]} 27. Be2 {[%emt 0:00:02]} Rd6 {[%emt 0:03:47]} 28. Rf1 {[%emt 0:06:30]} Bd7 {[%emt 0:01:27]} 29. Qb3 {[%emt 0:00:24]} Qxb3 {[%emt 0:00:02]} 30. cxb3 {[%emt 0:00:03]} Rd2 {[%emt 0:00:02]} 31. Bd1 {[%emt 0:03:56]} Ra2 {[%emt 0:00:15]} 32. a4 {[%emt 0:00:31]} Bc6 {[%emt 0:05:26]} 33. Re1 {[%emt 0:00:19]} Ke6 {[%emt 0:01:03]} 34. Kg1 {[%emt 0:02:32]} Rb2 {[%emt 0:00:36]} 35. g3 {[%emt 0:03:25]} Ke5 {[%emt 0:00:25]} 36. Rf1 {[%emt 0:01:16]} Rb1 {[%emt 0:01:41]} 37. Re1 {[%emt 0:02:35]} Bxe4 {[%emt 0:00:23]} 38. Rxe4+ {[%emt 0:00:26]} 0-1

[Event "Kragero Resort Chess A 2019"]
[Site "Kragero"]
[Date "2019.02.20"]
[Round "1.27"]
[White "Stefansson, Vignir Vatnar"]
[Black "Nilsen, Jarle"]
[Result "1-0"]
[ECO "A25"]
[WhiteElo "2263"]
[BlackElo "1845"]
[Annotator "NA"]
[PlyCount "67"]
[EventDate "2019.02.20"]
[EventType "swiss"]
[EventCountry "NOR"]
[SourceTitle "playchess.com"]
[Source "ChessBase"]
[SourceQuality "1"]
[TimeControl "5400+30"]

1. c4 {[%emt 0:00:00]} e5 {[%emt 0:00:00]} 2. Nc3 {[%emt 0:00:00]} Nc6 {[%emt 0:00:01]} 3. g3 {[%emt 0:00:06]} f5 {[%emt 0:00:24]} 4. Bg2 {[%emt 0:00:20]} Nf6 {[%emt 0:00:06]} 5. e3 {[%emt 0:00:21]} d5 {[%emt 0:00:23]} 6. Nxd5 {[%emt 0:01:04]} Nxd5 {[%emt 0:00:31]} 7. cxd5 {[%emt 0:00:08]} Nb4 {[%emt 0:00:05]} 8. d3 {[%emt 0:00:11]} Nxd5 {[%emt 0:01:55]} 9. Nf3 {[%emt 0:00:23]} Bd6 {[%emt 0:06:54]} 10. O-O {[%emt 0:01:41]} Qe7 {[%emt 0:13:13]} 11. e4 {[%emt 0:20:55]} fxe4 {[%emt 0:04:08]} 12. Ng5 {[%emt 0:15:35]} Nf6 {[%emt 0:06:36]} 13. Nxe4 {[%emt 0:00:07]} Nxe4 {[%emt 0:06:05]} 14. Bxe4 {[%emt 0:00:09]} O-O {[%emt 0:03:21]} 15. Bxb7 {[%emt 0:00:34]} Bxb7 {[%emt 0:04:26]} 16. Qb3+ {[%emt 0:00:08]} Kh8 {[%emt 0:10:56]} 17. Qxb7 {[%emt 0:00:07]} Bc5 {[%emt 0:00:25]} 18. Be3 {[%emt 0:03:09]} Rab8 {[%emt 0:05:16]} 19. Qe4 {[%emt 0:01:00]} Rxb2 {[%emt 0:03:28]} 20. Rac1 {[%emt 0:04:32]} Bb6 {[%emt 0:09:10]} 21. d4 {[%emt 0:00:26]} Rxa2 {[%emt 0:04:33]} 22. dxe5 {[%emt 0:00:50]} Qe6 {[%emt 0:05:07]} 23. Rc6 {[%emt 0:00:41]} Qh3 {[%emt 0:03:34]} 24. e6 {[%emt 0:04:16]} Rfxf2 {[%emt 0:03:07]} 25. Rxf2 {[%emt 0:00:35]} Ra1+ {[%emt 0:03:38]} 26. Rc1 {[%emt 0:00:09]} Rxc1+ {[%emt 0:00:13]} 27. Bxc1 {[%emt 0:00:06]} Bxf2+ {[%emt 0:00:12]} 28. Kxf2 {[%emt 0:00:04]} Qxh2+ {[%emt 0:00:08]} 29. Qg2 {[%emt 0:00:05]} Qxg2+ {[%emt 0:00:36]} 30. Kxg2 {[%emt 0:00:02]} Kg8 {[%emt 0:00:46]} 31. Ba3 {[%emt 0:00:05]} g5 {[%emt 0:00:47]} 32. g4 {[%emt 0:00:05]} Kg7 {[%emt 0:00:06]} 33. e7 {[%emt 0:00:11]} Kf7 {[%emt 0:00:01]} 34. Kf3 {[%emt 0:00:06]} 1-0

[Event "Kragero Resort Chess A 2019"]
[Site "Kragero"]
[Date "2019.02.20"]
[Round "1.28"]
[White "Aarnes, Eirik"]
[Black "Mashinskaya, Iulia"]
[Result "1/2-1/2"]
[ECO "B48"]
[WhiteElo "1843"]
[BlackElo "2261"]
[Annotator "NA"]
[PlyCount "58"]
[EventDate "2019.02.20"]
[EventType "swiss"]
[EventCountry "NOR"]
[SourceTitle "playchess.com"]
[Source "ChessBase"]
[SourceQuality "1"]
[TimeControl "5400+30"]

1. e4 {[%emt 0:00:00]} c5 {[%emt 0:00:00]} 2. Nf3 {[%emt 0:00:00]} Nc6 {[%emt 0:00:00]} 3. d4 {[%emt 0:00:00]} cxd4 {[%emt 0:00:02]} 4. Nxd4 {[%emt 0:00:03]} Qc7 {[%emt 0:00:10]} 5. Be3 {[%emt 0:06:51]} Nf6 {[%emt 0:04:22]} 6. Nc3 {[%emt 0:06:19]} e6 {[%emt 0:01:26]} 7. Bd3 {[%emt 0:04:56]} a6 {[%emt 0:02:07]} 8. O-O {[%emt 0:02:59]} b5 {[%emt 0:09:41]} 9. Re1 {[%emt 0:09:23]} Be7 {[%emt 0:08:32]} 10. Nxc6 {[%emt 0:07:29]} dxc6 {[%emt 0:05:09]} 11. e5 {[%emt 0:03:40]} Nd5 {[%emt 0:14:50]} 12. Qg4 {[%emt 0:03:29]} g6 {[%emt 0:02:20]} 13. Bg5 {[%emt 0:04:54]} Nxc3 {[%emt 0:07:14]} 14. bxc3 {[%emt 0:01:02]} Bb7 {[%emt 0:04:29]} 15. a4 {[%emt 0:08:19]} Rd8 {[%emt 0:04:38]} 16. Bh6 {[%emt 0:06:36]} Rd5 {[%emt 0:07:57]} 17. Qh3 {[%emt 0:04:52]} Rg8 {[%emt 0:06:03]} 18. Be4 {[%emt 0:02:01]} Rd7 {[%emt 0:01:55]} 19. Bd3 {[%emt 0:03:06]} b4 {[%emt 0:04:42]} 20. Bd2 {[%emt 0:05:59]} bxc3 {[%emt 0:03:42]} 21. Bxc3 {[%emt 0:00:59]} h5 {[%emt 0:01:05]} 22. Rab1 {[%emt 0:02:25]} c5 {[%emt 0:01:22]} 23. Qe3 {[%emt 0:01:55]} Qd8 {[%emt 0:06:42]} 24. Rxb7 {[%emt 0:02:41]} Rxb7 {[%emt 0:00:13]} 25. Bxa6 {[%emt 0:00:06]} Rb8 {[%emt 0:01:54]} 26. Bb5+ {[%emt 0:00:06]} Kf8 {[%emt 0:00:05]} 27. Qh6+ {[%emt 0:00:42]} Rg7 {[%emt 0:00:30]} 28. Qh8+ {[%emt 0:00:30]} Rg8 {[%emt 0:00:23]} 29. Qh6+ {[%emt 0:00:10]} Rg7 {[%emt 0:00:09]} 1/2-1/2

[Event "Kragero Resort Chess A 2019"]
[Site "Kragero"]
[Date "2019.02.20"]
[Round "1.29"]
[White "Sgircea, Silvia-Raluca"]
[Black "Mkrtchyan, Anahit D."]
[Result "1-0"]
[ECO "E18"]
[WhiteElo "2251"]
[BlackElo "1841"]
[Annotator "NA"]
[PlyCount "111"]
[EventDate "2019.02.20"]
[EventType "swiss"]
[EventCountry "NOR"]
[SourceTitle "playchess.com"]
[Source "ChessBase"]
[SourceQuality "1"]
[TimeControl "5400+30"]

1. Nf3 {[%emt 0:00:00]} Nf6 {[%emt 0:00:00]} 2. c4 {[%emt 0:00:00]} e6 {[%emt 0:00:00]} 3. g3 {[%emt 0:00:01]} d5 {[%emt 0:00:24]} 4. Bg2 {[%emt 0:00:06]} Be7 {[%emt 0:00:20]} 5. O-O {[%emt 0:00:17]} O-O {[%emt 0:00:47]} 6. Qc2 {[%emt 0:00:38]} Nbd7 {[%emt 0:02:24]} 7. d4 {[%emt 0:02:39]} b6 {[%emt 0:02:31]} 8. Bf4 {[%emt 0:20:32]} c5 {[%emt 0:03:51]} 9. cxd5 {[%emt 0:01:16]} exd5 {[%emt 0:02:38]} 10. Nc3 {[%emt 0:00:10]} Bb7 {[%emt 0:05:36]} 11. Rfd1 {[%emt 0:03:09]} Qc8 {[%emt 0:09:57]} 12. Bh3 {[%emt 0:08:50]} Rd8 {[%emt 0:19:16]} 13. Rac1 {[%emt 0:08:54]} Qc6 {[%emt 0:07:02]} 14. a4 {[%emt 0:08:59]} Bd6 {[%emt 0:12:05]} 15. Bg5 {[%emt 0:05:03]} Be7 {[%emt 0:04:57]} 16. Nh4 {[%emt 0:03:28]} cxd4 {[%emt 0:08:36]} 17. Nf5 {[%emt 0:00:26]} Bc5 {[%emt 0:01:33]} 18. Nxd4 {[%emt 0:00:18]} Qd6 {[%emt 0:03:22]} 19. Nf5 {[%emt 0:04:50]} Qf8 {[%emt 0:05:37]} 20. Bg2 {[%emt 0:05:53]} h6 {[%emt 0:01:44]} 21. Be3 {[%emt 0:02:14]} Ne5 {[%emt 0:02:21]} 22. Bd4 {[%emt 0:01:02]} Qe8 {[%emt 0:01:38]} 23. Qb3 {[%emt 0:07:26]} Qe6 {[%emt 0:02:49]} 24. Bxc5 {[%emt 0:04:59]} Qxf5 {[%emt 0:00:57]} 25. Bd4 {[%emt 0:00:12]} Ne4 {[%emt 0:00:44]} 26. Nxe4 {[%emt 0:03:04]} dxe4 {[%emt 0:00:08]} 27. h3 {[%emt 0:00:38]} Rac8 {[%emt 0:00:38]} 28. Be3 {[%emt 0:01:04]} Ba6 {[%emt 0:00:29]} 29. Rxd8+ {[%emt 0:03:00]} Rxd8 {[%emt 0:00:05]} 30. Qc2 {[%emt 0:00:18]} Bb7 {[%emt 0:01:16]} 31. Qc7 {[%emt 0:01:01]} Rd7 {[%emt 0:00:31]} 32. Qb8+ {[%emt 0:00:07]} Kh7 {[%emt 0:00:13]} 33. Qxa7 {[%emt 0:02:04]} Bd5 {[%emt 0:01:11]} 34. Qxb6 {[%emt 0:00:24]} Rb7 {[%emt 0:00:05]} 35. Qd4 {[%emt 0:00:17]} Nc6 {[%emt 0:00:45]} 36. Qd2 {[%emt 0:00:32]} Qe5 {[%emt 0:00:21]} 37. Rc5 {[%emt 0:00:27]} Ne7 {[%emt 0:00:44]} 38. Bd4 {[%emt 0:01:07]} Qe6 {[%emt 0:00:24]} 39. b4 {[%emt 0:00:36]} f5 {[%emt 0:00:50]} 40. Bc3 {[%emt 0:00:38]} Rd7 {[%emt 0:00:18]} 41. Qd4 {[%emt 0:03:10]} Nc6 {[%emt 0:00:05]} 42. Qe3 {[%emt 0:00:07]} Bb3 {[%emt 0:00:23]} 43. b5 {[%emt 0:00:20]} Ne7 {[%emt 0:00:29]} 44. a5 {[%emt 0:00:52]} Nd5 {[%emt 0:00:11]} 45. Qd4 {[%emt 0:00:36]} Nf4 {[%emt 0:00:32]} 46. Qe3 {[%emt 0:00:10]} Rd1+ {[%emt 0:00:31]} 47. Kh2 {[%emt 0:00:02]} Nd5 {[%emt 0:00:03]} 48. Rxd5 {[%emt 0:00:06]} Bxd5 {[%emt 0:01:14]} 49. Qf4 {[%emt 0:01:04]} Qd7 {[%emt 0:00:50]} 50. Qe5 {[%emt 0:00:22]} Bc4 {[%emt 0:00:35]} 51. b6 {[%emt 0:00:57]} Rd5 {[%emt 0:00:07]} 52. Qf4 {[%emt 0:00:50]} Bxe2 {[%emt 0:00:12]} 53. g4 {[%emt 0:00:31]} g5 {[%emt 0:00:41]} 54. Qb8 {[%emt 0:00:06]} Ba6 {[%emt 0:01:12]} 55. Qh8+ {[%emt 0:00:13]} Kg6 {[%emt 0:00:02]} 56. Qg8+ {[%emt 0:00:16]} 1-0

[Event "Kragero Resort Chess A 2019"]
[Site "Kragero"]
[Date "2019.02.20"]
[Round "1.30"]
[White "Sidali, Elias Hulleberg"]
[Black "Fossum, Oystein Boyum"]
[Result "1/2-1/2"]
[ECO "B27"]
[WhiteElo "1840"]
[BlackElo "2250"]
[Annotator "NA"]
[PlyCount "57"]
[EventDate "2019.02.20"]
[EventType "swiss"]
[EventCountry "NOR"]
[SourceTitle "playchess.com"]
[Source "ChessBase"]
[SourceQuality "1"]
[TimeControl "5400+30"]

1. e4 {[%emt 0:00:00]} c5 {[%emt 0:00:00]} 2. Nf3 {[%emt 0:00:00]} g6 {[%emt 0:00:00]} 3. d4 {[%emt 0:00:00]} cxd4 {[%emt 0:00:00]} 4. Qxd4 {[%emt 0:00:00]} Nf6 {[%emt 0:00:00]} 5. Nc3 {[%emt 0:00:00]} Nc6 {[%emt 0:00:25]} 6. Qa4 {[%emt 0:00:00]} d6 {[%emt 0:01:58]} 7. e5 {[%emt 0:00:00]} dxe5 {[%emt 0:01:37]} 8. Nxe5 {[%emt 0:00:00]} Qd4 {[%emt 0:06:36]} 9. Nxc6 {[%emt 0:00:00]} Qxa4 {[%emt 0:00:24]} 10. Nxa4 {[%emt 0:00:01]} bxc6 {[%emt 0:00:10]} 11. b3 {[%emt 0:00:01]} Bg7 {[%emt 0:05:53]} 12. Bb2 {[%emt 0:00:07]} O-O {[%emt 0:02:14]} 13. O-O-O {[%emt 0:02:00]} Ne4 {[%emt 0:28:12]} 14. Bxg7 {[%emt 0:00:07]} Kxg7 {[%emt 0:00:08]} 15. Re1 {[%emt 0:00:04]} Nxf2 {[%emt 0:00:54]} 16. Rg1 {[%emt 0:00:07]} Ng4 {[%emt 0:07:22]} 17. h3 {[%emt 0:00:13]} Nf6 {[%emt 0:00:52]} 18. Rxe7 {[%emt 0:00:08]} Nd5 {[%emt 0:02:12]} 19. Re1 {[%emt 0:04:16]} Be6 {[%emt 0:13:59]} 20. Nc5 {[%emt 0:01:41]} Rae8 {[%emt 0:00:34]} 21. Ba6 {[%emt 0:05:17]} Nf4 {[%emt 0:04:30]} 22. Re4 {[%emt 0:05:18]} g5 {[%emt 0:01:59]} 23. Rge1 {[%emt 0:04:04]} Nxg2 {[%emt 0:03:04]} 24. Nxe6+ {[%emt 0:00:08]} Rxe6 {[%emt 0:02:45]} 25. Rxe6 {[%emt 0:00:15]} fxe6 {[%emt 0:00:14]} 26. Rxe6 {[%emt 0:00:06]} Rf6 {[%emt 0:01:19]} 27. Re7+ {[%emt 0:02:37]} Rf7 {[%emt 0:01:05]} 28. Re6 {[%emt 0:00:01]} Rf6 {[%emt 0:05:09]} 29. Re7+ {[%emt 0:00:08]} 1/2-1/2

[Event "Kragero Resort Chess A 2019"]
[Site "Kragero"]
[Date "2019.02.20"]
[Round "1.31"]
[White "Nordquelle, Daniel"]
[Black "Skaslien, Ingrid"]
[Result "1-0"]
[ECO "B24"]
[WhiteElo "2235"]
[BlackElo "1828"]
[Annotator "NA"]
[PlyCount "57"]
[EventDate "2019.02.20"]
[EventType "swiss"]
[EventCountry "NOR"]
[SourceTitle "playchess.com"]
[Source "ChessBase"]
[SourceQuality "1"]
[TimeControl "5400+30"]

1. e4 {[%emt 0:00:00]} c5 {[%emt 0:00:00]} 2. Nc3 {[%emt 0:00:00]} e6 {[%emt 0:00:21]} 3. g3 {[%emt 0:00:00]} Nc6 {[%emt 0:03:25]} 4. Bg2 {[%emt 0:00:29]} Nf6 {[%emt 0:02:08]} 5. d3 {[%emt 0:01:12]} Be7 {[%emt 0:03:41]} 6. f4 {[%emt 0:00:40]} d5 {[%emt 0:02:46]} 7. e5 {[%emt 0:01:11]} Ng8 {[%emt 0:04:31]} 8. Nf3 {[%emt 0:05:21]} Nh6 {[%emt 0:05:20]} 9. O-O {[%emt 0:05:06]} Bd7 {[%emt 0:04:28]} 10. Kh1 {[%emt 0:01:43]} Nf5 {[%emt 0:03:28]} 11. Ne2 {[%emt 0:01:00]} h5 {[%emt 0:10:15]} 12. d4 {[%emt 0:05:32]} h4 {[%emt 0:07:29]} 13. g4 {[%emt 0:00:59]} h3 {[%emt 0:06:50]} 14. gxf5 {[%emt 0:00:13]} hxg2+ {[%emt 0:00:12]} 15. Kxg2 {[%emt 0:00:07]} cxd4 {[%emt 0:01:09]} 16. Nexd4 {[%emt 0:03:09]} exf5 {[%emt 0:05:32]} 17. Be3 {[%emt 0:01:30]} Nxd4 {[%emt 0:02:58]} 18. Qxd4 {[%emt 0:07:06]} Bc6 {[%emt 0:03:35]} 19. Rad1 {[%emt 0:02:25]} b6 {[%emt 0:02:17]} 20. h3 {[%emt 0:06:51]} Rc8 {[%emt 0:04:37]} 21. Kh2 {[%emt 0:02:21]} Bc5 {[%emt 0:06:09]} 22. Qd2 {[%emt 0:00:33]} d4 {[%emt 0:05:52]} 23. Bg1 {[%emt 0:03:24]} Qd5 {[%emt 0:03:31]} 24. Bxd4 {[%emt 0:03:02]} Qxa2 {[%emt 0:03:42]} 25. Bxc5 {[%emt 0:14:18]} bxc5 {[%emt 0:00:06]} 26. b3 {[%emt 0:01:57]} Qa6 {[%emt 0:01:42]} 27. Ng5 {[%emt 0:00:56]} O-O {[%emt 0:02:24]} 28. Rfe1 {[%emt 0:07:28]} Rfd8 {[%emt 0:02:31]} 29. Qxd8+ {[%emt 0:00:37]} 1-0

[Event "Kragero Resort Chess A 2019"]
[Site "Kragero"]
[Date "2019.02.21"]
[Round "2.1"]
[White "Mihajlov, Sebastian"]
[Black "Hammer, Jon Ludvig"]
[Result "0-1"]
[ECO "C56"]
[WhiteElo "2357"]
[BlackElo "2652"]
[Annotator "RC"]
[PlyCount "90"]
[EventDate "2019.02.20"]
[EventType "swiss"]
[EventCountry "NOR"]
[SourceTitle "playchess.com"]
[Source "ChessBase"]
[SourceQuality "1"]
[TimeControl "5400+30"]

1. e4 {[%emt 0:04:34]} e5 {[%emt 0:01:14]} 2. Nf3 {[%emt 0:00:10]} Nc6 {[%emt 0:00:04]} 3. Bc4 {[%emt 0:00:13]} Nf6 {[%emt 0:00:12]} 4. d4 {[%emt 0:00:46]} exd4 {[%emt 0:00:54]} 5. O-O {[%emt 0:00:16]} Bc5 {[%emt 0:07:29]} 6. e5 {[%emt 0:04:41]} d5 {[%emt 0:00:15]} 7. Bb5 {[%emt 0:06:04]} Ne4 {[%emt 0:00:31]} 8. Nxd4 {[%emt 0:00:10]} O-O {[%emt 0:00:40]} 9. Bxc6 {[%emt 0:06:08]} bxc6 {[%emt 0:00:06]} 10. Be3 {[%emt 0:00:16]} Bd7 {[%emt 0:05:12]} 11. Nd2 {[%emt 0:01:25]} Qe7 {[%emt 0:01:50]} 12. f4 {[%emt 0:09:41]} f6 {[%emt 0:25:27]} 13. Nxe4 {[%emt 0:06:21]} dxe4 {[%emt 0:00:12]} 14. exf6 {[%emt 0:05:29]} Rxf6 {[%emt 0:00:13]} 15. Qe2 {[%emt 0:01:46]} Kh8 {[%emt 0:02:57]} 16. Qf2 {[%emt 0:04:35]} Raf8 {[%emt 0:01:20]} 17. Rad1 {[%emt 0:04:11]} Bd6 {[%emt 0:05:53]} 18. Ne2 {[%emt 0:03:19]} c5 {[%emt 0:13:32]} 19. Nc3 {[%emt 0:16:28]} Bc6 {[%emt 0:02:24]} 20. Nd5 {[%emt 0:02:25]} Bxd5 {[%emt 0:00:21]} 21. Rxd5 {[%emt 0:00:02]} Bxf4 {[%emt 0:03:06]} 22. Bxf4 {[%emt 0:00:14]} e3 {[%emt 0:00:14]} 23. Qe2 {[%emt 0:06:28]} Rxf4 {[%emt 0:00:33]} 24. Rxf4 {[%emt 0:00:06]} Rxf4 {[%emt 0:00:08]} 25. Rd3 {[%emt 0:02:35]} Re4 {[%emt 0:00:07]} 26. g3 {[%emt 0:04:45]} h6 {[%emt 0:01:17]} 27. Kg2 {[%emt 0:00:04]} c4 {[%emt 0:02:39]} 28. Rd1 {[%emt 0:02:33]} Qe6 {[%emt 0:03:29]} 29. Rd8+ {[%emt 0:01:18]} Kh7 {[%emt 0:00:02]} 30. Rd1 {[%emt 0:00:05]} Re5 {[%emt 0:06:47]} 31. Re1 {[%emt 0:00:42]} Qf5 {[%emt 0:02:00]} 32. Rf1 {[%emt 0:04:39]} Qe4+ {[%emt 0:00:30]} 33. Rf3 {[%emt 0:01:50]} Qd5 {[%emt 0:02:42]} 34. Kf1 {[%emt 0:01:07]} Qd2 {[%emt 0:01:46]} 35. c3 {[%emt 0:00:47]} c6 {[%emt 0:02:11]} 36. h4 {[%emt 0:00:07]} h5 {[%emt 0:02:27]} 37. a4 {[%emt 0:01:15]} a5 {[%emt 0:02:24]} 38. Rf4 {[%emt 0:00:29]} Rd5 {[%emt 0:00:32]} 39. Rd4 {[%emt 0:00:11]} Rf5+ {[%emt 0:02:37]} 40. Rf4 {[%emt 0:00:01]} Rxf4+ {[%emt 0:01:40]} 41. gxf4 {[%emt 0:00:02]} Kg6 {[%emt 0:00:23]} 42. Qf3 {[%emt 0:00:15]} e2+ {[%emt 0:01:13]} 43. Qxe2 {[%emt 0:00:05]} Qxe2+ {[%emt 0:00:04]} 44. Kxe2 {[%emt 0:00:07]} Kf5 {[%emt 0:00:03]} 45. Ke3 {[%emt 0:00:28]} c5 {[%emt 0:00:11] Kd4 [%emt 00:00:18] Ke5+} 0-1